fUSD/lending_fUSD_20250606
["ID","MTS","AMOUNT","RATE_DAILY","PERIOD"]
[364745252,1749227443734,-1314.64,0.00029205,5]
[364745253,1749227443744,-808.41,0.00029205,5]
[364745254,1749227443753,-4664.58,0.00029205,5]
[364745255,1749227443762,-573.94,0.00029205,5]
[364745256,1749227443771,-1107.97,0.00029205,5]
[364745257,1749227443781,-4442.11,0.00029205,5]
[364745258,1749227443791,-757.84,0.00029205,5]
[364745259,1749227443802,-480.0,0.00029205,5]
[364745260,1749227443813,-1235.4,0.00029205,5]
[364745261,1749227443822,-879.42,0.00029205,5]
[364745262,1749227443832,-1063.27,0.00029205,5]
[364745263,1749227443842,-707.79,0.00029205,2]
[364745264,1749227443853,-2227.4,0.00029205,5]
[364745265,1749227443863,-884.44,0.00029205,5]
[364745266,1749227443872,-949.13,0.00029205,2]
[364745267,1749227443883,-480.0,0.00029205,5]
[364745268,1749227443893,-151.0,0.00029205,7]
[364745269,1749227443903,-151.0,0.00029205,7]
[364745270,1749227443912,-1185.65,0.00029205,5]
[364745271,1749227443922,-785.68,0.00029205,5]
[364745272,1749227443933,-310.237524,0.00029259,6]
[364745273,1749227443943,-4587.21,0.00029369,5]
[364745274,1749227443952,-1698.9,0.00029369,5]
[364745275,1749227443961,-795.67,0.00029369,5]
[364745276,1749227443971,-1782.25,0.00029369,5]
[364745277,1749227443980,-897.82,0.00029369,5]
[364745278,1749227443990,-950.52,0.00029369,5]
[364745279,1749227443999,-1314.64,0.00029369,5]
[364745280,1749227444008,-808.41,0.00029369,5]
[364745281,1749227444018,-4664.58,0.00029369,5]
[364745282,1749227444027,-573.94,0.00029369,5]
[364745283,1749227444036,-1107.97,0.00029369,5]
[364745284,1749227444045,-4442.11,0.00029369,5]
[364745285,1749227444055,-757.84,0.00029369,5]
[364745286,1749227444064,-480.0,0.00029369,5]
[364745287,1749227444073,-1235.4,0.00029369,5]
[364745288,1749227444082,-879.42,0.00029369,5]
[364745289,1749227444092,-1063.27,0.00029369,5]
[364745290,1749227444104,-707.79,0.00029369,2]
[364745291,1749227444115,-2227.4,0.00029369,5]
[364745292,1749227444124,-884.44,0.00029369,5]
[364745293,1749227444133,-949.13,0.00029369,2]
[364745294,1749227444143,-480.0,0.00029369,5]
[364745295,1749227444152,-1185.65,0.00029369,5]
[364745296,1749227444162,-785.68,0.00029369,5]
[364745297,1749227444171,-151.0,0.00029397,2]
[364745298,1749227444181,-3588.55519907,0.00029419,2]
[364745299,1749227444191,-150.0,0.00029463,2]
[364745300,1749227444200,-4587.21,0.00029534,5]
[364745301,1749227444209,-1698.9,0.00029534,5]
[364745302,1749227444218,-795.67,0.00029534,5]
[364745303,1749227444228,-1782.25,0.00029534,5]
[364745304,1749227444237,-897.82,0.00029534,5]
[364745305,1749227444246,-950.52,0.00029534,5]
[364745306,1749227444256,-1314.64,0.00029534,5]
[364745307,1749227444265,-808.41,0.00029534,5]
[364745308,1749227444274,-4664.58,0.00029534,5]
[364745309,1749227444283,-573.94,0.00029534,5]
[364745310,1749227444293,-1107.97,0.00029534,5]
[364745311,1749227444302,-4442.11,0.00029534,5]
[364745312,1749227444312,-757.84,0.00029534,5]
[364745313,1749227444321,-480.0,0.00029534,5]
[364745314,1749227444330,-1235.4,0.00029534,5]
[364745315,1749227444340,-879.42,0.00029534,5]
[364745316,1749227444352,-1063.27,0.00029534,5]
[364745317,1749227444361,-707.79,0.00029534,2]
[364745318,1749227444370,-2227.4,0.00029534,5]
[364745319,1749227444379,-884.44,0.00029534,5]
[364745320,1749227444389,-949.13,0.00029534,2]
[364745321,1749227444398,-480.0,0.00029534,5]
[364745322,1749227444407,-1185.65,0.00029534,5]
[364745323,1749227444417,-785.68,0.00029534,5]
[364745324,1749227444426,-726.86776214,0.0002959,21]
[364745325,1749227444435,-8456.07,0.000296,2]
[364745326,1749227444445,-288.4848,0.0002965,2]
[364745327,1749227444454,-288.4848,0.0002965,2]
[364745328,1749227444463,-288.4848,0.0002965,2]
[364745329,1749227444473,-288.4848,0.0002965,2]
[364745330,1749227444482,-288.4848,0.0002965,2]
[364745331,1749227444491,-288.4848,0.0002965,2]
[364745332,1749227444501,-4587.21,0.00029698,5]
[364745333,1749227444511,-1698.9,0.00029698,5]
[364745334,1749227444520,-795.67,0.00029698,5]
[364745335,1749227444530,-1782.25,0.00029698,5]
[364745337,1749227444539,-897.82,0.00029698,5]
[364745338,1749227444549,-950.52,0.00029698,5]
[364745339,1749227444558,-1314.64,0.00029698,5]
[364745340,1749227444567,-808.41,0.00029698,5]
[364745341,1749227444577,-4664.58,0.00029698,5]
[364745342,1749227444587,-573.94,0.00029698,5]
[364745343,1749227444599,-1107.97,0.00029698,5]
[364745344,1749227444608,-4442.11,0.00029698,5]
[364745345,1749227444617,-757.84,0.00029698,5]
[364745346,1749227444626,-480.0,0.00029698,5]
[364745347,1749227444636,-1235.4,0.00029698,5]
[364745348,1749227444646,-879.42,0.00029698,5]
[364745349,1749227444658,-1063.27,0.00029698,5]
[364745350,1749227444668,-707.79,0.00029698,2]
[364745351,1749227444677,-2227.4,0.00029698,5]
[364745352,1749227444688,-884.44,0.00029698,5]
[364745353,1749227444697,-949.13,0.00029698,2]
[364745354,1749227444707,-480.0,0.00029698,5]
[364745355,1749227444717,-1185.65,0.00029698,5]
[364745356,1749227444727,-785.68,0.00029698,5]
[364745357,1749227444736,-4667.01,0.000297,2]
[364745358,1749227444747,-7759.0,0.000297,2]
[364745359,1749227444756,-539.94174105,0.00029724,2]
[364745360,1749227444765,-5000.0,0.00029724,2]
[364745361,1749227444775,-2562.94388246,0.00029734,2]
[364745362,1749227444784,-3899.93320708,0.00029734,2]
[364745363,1749227444794,-244.62724186,0.00029734,2]
[364745364,1749227444808,-2244.87287491,0.00029734,2]
[364745365,1749227444818,-169.71507828,0.00029734,2]
[364745366,1749227444828,-675.69071878,0.00029745,2]
[364745367,1749227444838,-159.60519539,0.00029756,2]
[364745368,1749227444850,-183.6666071,0.00029756,2]
[364745369,1749227444860,-500.0,0.00029757,2]
[364745370,1749227444869,-3159.1871,0.00029757,2]
[364745371,1749227444879,-1000.0,0.00029757,2]
[364745372,1749227444889,-150.0,0.00029763,2]
[364745373,1749227444899,-154.34736331,0.00029781,30]
[364745374,1749227444908,-4667.01,0.000298,2]
[364745375,1749227444983,-1500.0,0.000298,2]
[364745376,1749227444994,-1500.0,0.000298,2]
[364745377,1749227445003,-1500.0,0.000298,2]
[364745378,1749227445013,-1500.0,0.000298,2]
[364745379,1749227445022,-1500.0,0.000298,2]
[364745380,1749227445031,-1500.0,0.000298,2]
[364745381,1749227445040,-1500.0,0.000298,2]
[364745382,1749227445049,-828.31,0.000298,2]
[364745383,1749227445059,-1500.0,0.000298,2]
[364745384,1749227445068,-1500.0,0.000298,2]
[364745385,1749227445077,-1500.0,0.000298,2]
[364745386,1749227445086,-391.2026339,0.00029811,2]
[364745387,1749227445094,-391.2026339,0.00029811,2]
[364745388,1749227445104,-3609486.44885407,0.00029821,4]
[364745389,1749227445115,-250447.3049298,0.00029821,4]
[364745390,1749227445123,-151.0,0.00029824,7]
[364745391,1749227445132,-151.0,0.00029824,7]
[364745392,1749227445142,-12124.47,0.00029824,2]
[364745393,1749227445151,-151.611789,0.00029824,7]
[364745394,1749227445160,-151.0,0.00029824,7]
[364745395,1749227445169,-151.0,0.00029824,7]
[364745396,1749227445179,-480.0,0.00029824,5]
[364745397,1749227445190,-718.82,0.00029824,5]
[364745398,1749227445201,-1052.544835,0.00029824,7]
[364745399,1749227445210,-438.609149,0.00029824,7]
[364745400,1749227445219,-1521.37,0.00029824,5]
[364745401,1749227445228,-1052.544835,0.00029824,7]
[364745402,1749227445237,-438.609149,0.00029824,7]
[364745403,1749227445247,-151.0,0.00029824,7]
[364745404,1749227445256,-151.0,0.00029824,7]
[364745405,1749227445266,-480.0,0.00029824,5]
[364745406,1749227445275,-1362.09,0.00029824,5]
[364745407,1749227445284,-192.56007,0.00029824,7]
[364745408,1749227445293,-151.0,0.00029824,7]
[364745409,1749227445302,-192.56007,0.00029824,7]
[364745410,1749227445312,-534.49,0.00029824,5]
[364745411,1749227445321,-534.49,0.00029824,5]
[364745412,1749227445330,-534.49,0.00029824,5]
[364745413,1749227445339,-1701.6,0.00029824,5]
[364745414,1749227445349,-152.902438,0.00029824,7]
[364745415,1749227445358,-1017.03,0.00029824,5]
[364745416,1749227445367,-511.37912,0.00029824,7]
[364745417,1749227445376,-511.37912,0.00029824,7]
[364745418,1749227445385,-511.37912,0.00029824,7]
[364745419,1749227445395,-511.37912,0.00029824,7]
[364745420,1749227445404,-573.7,0.00029824,5]
[364745421,1749227445413,-151.651746,0.00029824,7]
[364745422,1749227445422,-1869.1,0.00029824,5]
[364745423,1749227445432,-1489.661916,0.00029824,7]
[364745424,1749227445441,-151.0,0.00029824,7]
[364745425,1749227445450,-244.578444,0.00029824,7]
[364745426,1749227445462,-151.0,0.00029824,7]
[364745427,1749227445471,-1489.661916,0.00029824,7]
[364745428,1749227445480,-151.0,0.00029824,7]
[364745429,1749227445491,-151.0,0.00029824,7]
[364745430,1749227445500,-244.578444,0.00029824,7]
[364745431,1749227445509,-1489.661916,0.00029824,7]
[364745433,1749227445518,-151.0,0.00029824,7]
[364745434,1749227445527,-742.15,0.00029824,5]
[364745435,1749227445536,-1489.661916,0.00029824,7]
[364745436,1749227445545,-151.0,0.00029824,7]
[364745437,1749227445554,-151.0,0.00029824,7]
[364745438,1749227445563,-151.0,0.00029824,7]
[364745439,1749227445572,-151.0,0.00029824,7]
[364745440,1749227445581,-151.0,0.00029824,7]
[364745441,1749227445590,-151.0,0.00029824,7]
[364745442,1749227445599,-151.0,0.00029824,7]
[364745443,1749227445608,-237.006949,0.00029824,7]
[364745444,1749227445617,-151.0,0.00029824,7]
[364745445,1749227445627,-4387.12,0.00029824,5]
[364745446,1749227445636,-3114.45,0.00029824,7]
[364745447,1749227445645,-3114.45,0.00029824,7]
[364745448,1749227445655,-3114.45,0.00029824,7]
[364745449,1749227445665,-1432.56,0.00029824,5]
[364745450,1749227445674,-480.0,0.00029824,5]
[364745451,1749227445683,-889.47,0.00029824,5]
[364745452,1749227445692,-7530.21026562,0.00029833,4]
[364745453,1749227445701,-534.49,0.00029833,5]
[364745454,1749227445711,-534.49,0.00029833,5]
[364745455,1749227445720,-534.49,0.00029833,5]
[364745456,1749227445729,-534.49,0.00029833,5]
[364745457,1749227445738,-534.49,0.00029833,5]
[364745458,1749227445747,-534.49,0.00029833,5]
[364745459,1749227445757,-534.49,0.00029833,5]
[364745460,1749227445767,-534.49,0.00029833,5]
[364745461,1749227445776,-534.49,0.00029833,5]
[364745462,1749227445786,-534.49,0.00029833,5]
[364745463,1749227445795,-534.49,0.00029833,5]
[364745464,1749227445808,-534.49,0.00029833,5]
[364745465,1749227445819,-534.49,0.00029833,5]
[364745466,1749227445828,-534.49,0.00029833,5]
[364745467,1749227445837,-534.49,0.00029833,5]
[364745468,1749227445847,-615721.98917226,0.00029833,7]
[364745474,1749227446849,-484.36215884,0.00027397,5]
[364745475,1749227446859,-480.0,0.00027397,5]
[364745476,1749227446868,-480.0,0.00027561,5]
[364745477,1749227446878,-480.0,0.00027726,5]
[364745478,1749227446889,-480.0,0.0002789,5]
[364745479,1749227446899,-1314.76,0.00028383,5]
[364745480,1749227446909,-1314.76,0.00028547,5]
[364745481,1749227446918,-151.0,0.00028712,2]
[364745482,1749227446928,-1314.76,0.00028712,5]
[364745483,1749227446938,-151.0,0.00028712,2]
[364745484,1749227446947,-151.0,0.00028712,2]
[364745485,1749227446956,-151.0,0.00028712,2]
[364745486,1749227446965,-1314.76,0.00028876,5]
[364745487,1749227446975,-1314.76,0.00029041,5]
[364745488,1749227446984,-1314.76,0.00029205,5]
[364745489,1749227446993,-1314.76,0.00029369,5]
[364745490,1749227447002,-480.0,0.00029824,5]
[364745491,1749227447012,-354656.36219175,0.00029833,7]
[364745492,1749227447021,-899.9,0.00029834,5]
[364745493,1749227447031,-480.0,0.00029834,5]
[364745494,1749227447040,-587.05638509,0.00029834,5]
[364745495,1749227447049,-480.0,0.00029834,5]
[364745496,1749227447060,-536.86565212,0.00029834,5]
[364745497,1749227447069,-480.0,0.00029834,5]
[364745498,1749227447079,-480.0,0.00029834,5]
[364745499,1749227447091,-496.21,0.00029834,5]
[364745500,1749227447101,-480.0,0.00029834,5]
[364745501,1749227447111,-480.0,0.00029834,5]
[364745502,1749227447121,-480.0,0.00029834,5]
[364745503,1749227447131,-481.26475001,0.00029834,5]
[364745504,1749227447140,-488.39739566,0.00029834,5]
[364745505,1749227447150,-480.0,0.00029834,5]
[364745506,1749227447159,-480.0,0.00029834,5]
[364745507,1749227447169,-480.0,0.00029834,5]
[364745508,1749227447178,-627.85645931,0.00029834,5]
[364745509,1749227447187,-480.0,0.00029834,5]
[364745510,1749227447197,-247.87578849,0.00029834,5]
[364745511,1749227447206,-480.0,0.00029834,5]
[364745512,1749227447216,-480.0,0.00029834,5]
[364745513,1749227447225,-360.0,0.00029834,5]
[364745514,1749227447235,-480.0,0.00029834,5]
[364745515,1749227447244,-480.0,0.00029834,5]
[364745516,1749227447254,-480.0,0.00029834,5]
[364745517,1749227447263,-480.0,0.00029834,5]
[364745518,1749227447273,-480.0,0.00029834,5]
[364745519,1749227447282,-625.10902855,0.00029834,5]
[364745520,1749227447291,-480.0,0.00029834,5]
[364745521,1749227447300,-480.0,0.00029834,5]
[364745522,1749227447310,-475.97098415,0.00029834,5]
[364745523,1749227447319,-506.28701828,0.00029834,5]
[364745524,1749227447328,-514.39,0.00029834,5]
[364745525,1749227447338,-480.0,0.00029834,5]
[364745526,1749227447347,-480.0,0.00029834,5]
[364745527,1749227447356,-480.0,0.00029834,5]
[364745528,1749227447366,-602.08,0.00029834,5]
[364745529,1749227447376,-778.91,0.00029834,5]
[364745530,1749227447386,-942.67,0.00029834,5]
[364745531,1749227447396,-480.0,0.00029834,5]
[364745532,1749227447406,-1093.12,0.00029834,5]
[364745533,1749227447416,-480.0,0.00029834,5]
[364745534,1749227447426,-506.04176666,0.00029834,5]
[364745535,1749227447436,-483.5,0.00029834,5]
[364745536,1749227447446,-616.99,0.00029834,5]
[364745537,1749227447456,-480.0,0.00029834,5]
[364745538,1749227447466,-480.0,0.00029834,5]
[364745539,1749227447475,-604.38,0.00029834,5]
[364745540,1749227447485,-486.9651403,0.00029834,5]
[364745541,1749227447495,-480.0,0.00029834,5]
[364745542,1749227447505,-480.0,0.00029834,5]
[364745543,1749227447515,-752.61,0.00029834,5]
[364745544,1749227447525,-480.0,0.00029834,5]
[364745545,1749227447534,-480.0,0.00029834,5]
[364745546,1749227447543,-517.27,0.00029834,5]
[364745547,1749227447553,-480.0,0.00029834,5]
[364745548,1749227447563,-660.66,0.00029834,5]
[364745549,1749227447573,-1167.43,0.00029834,5]
[364745550,1749227447582,-480.0,0.00029834,5]
[364745551,1749227447591,-535.50367172,0.00029834,5]
[364745552,1749227447602,-480.0,0.00029834,5]
[364745553,1749227447612,-480.0,0.00029834,5]
[364745554,1749227447621,-480.0,0.00029834,5]
[364745555,1749227447631,-480.0,0.00029834,5]
[364745556,1749227447641,-480.0,0.00029834,5]
[364745557,1749227447650,-480.0,0.00029834,5]
[364745558,1749227447661,-480.0,0.00029834,5]
[364745559,1749227447670,-1242.39,0.00029834,5]
[364745560,1749227447679,-480.0,0.00029834,5]
[364745561,1749227447689,-480.0,0.00029834,5]
[364745562,1749227447699,-719.98,0.00029834,5]
[364745563,1749227447709,-480.0,0.00029834,5]
[364745564,1749227447719,-1683.43,0.00029834,5]
[364745565,1749227447729,-986.2,0.00029834,5]
[364745566,1749227447738,-492.17,0.00029834,5]
[364745567,1749227447749,-1089.77,0.00029834,5]
[364745568,1749227447759,-151.0,0.00029834,7]
[364745569,1749227447769,-833.3,0.00029834,5]
[364745570,1749227447779,-849.29,0.00029834,5]
[364745571,1749227447789,-363.83203028,0.00029834,5]
[364745572,1749227447799,-480.0,0.00029834,5]
[364745573,1749227447812,-586.04108541,0.00029834,5]
[364745574,1749227447822,-422.98572044,0.00029834,5]
[364745575,1749227447831,-425.47665646,0.00029834,5]
[364745576,1749227447842,-1140.16,0.00029834,5]
[364745577,1749227447852,-364.41992749,0.00029834,5]
[364745578,1749227447863,-672.69,0.00029834,5]
[364745579,1749227447873,-480.0,0.00029834,5]
[364745580,1749227447884,-178.15380278,0.00029834,5]
[364745581,1749227447894,-480.0,0.00029834,5]
[364745582,1749227447904,-962.41,0.00029834,5]
[364745583,1749227447914,-483.7632258,0.00029834,5]
[364745584,1749227447924,-480.0,0.00029834,5]
[364745585,1749227447934,-480.0,0.00029834,5]
[364745586,1749227447944,-480.0,0.00029834,5]
[364745587,1749227447953,-1794.747295,0.00029834,5]
[364745588,1749227447963,-690.87,0.00029834,5]
[364745589,1749227447973,-693.92,0.00029834,5]
[364745590,1749227447983,-480.0,0.00029834,5]
[364745591,1749227447993,-1070.56,0.00029834,5]
[364745592,1749227448003,-9465.44,0.00029834,5]
[364745593,1749227448013,-1610.06,0.00029834,5]
[364745594,1749227448024,-480.0,0.00029834,5]
[364745595,1749227448034,-73448.51,0.00029834,5]
[364745596,1749227448044,-1020.69,0.00029834,5]
[364745597,1749227448054,-3692.71,0.00029834,5]
[364745598,1749227448064,-1368.0,0.00029834,5]
[364745599,1749227448074,-480.0,0.00029834,5]
[364745600,1749227448084,-1150.85,0.00029834,5]
[364745601,1749227448094,-1896.103585,0.00029834,5]
[364745602,1749227448106,-480.0,0.00029834,5]
[364745603,1749227448116,-1280.22,0.00029834,5]
[364745604,1749227448127,-1356.53,0.00029834,5]
[364745605,1749227448137,-914.26,0.00029834,5]
[364745606,1749227448147,-480.0,0.00029834,5]
[364745607,1749227448157,-8912.594129,0.00029834,7]
[364745608,1749227448167,-1493.12,0.00029834,5]
[364745609,1749227448177,-1953.69,0.00029834,5]
[364745610,1749227448187,-480.0,0.00029834,5]
[364745611,1749227448197,-480.0,0.00029834,5]
[364745612,1749227448207,-426.0577345,0.00029834,5]
[364745613,1749227448217,-492.14,0.00029834,5]
[364745614,1749227448227,-770.69,0.00029834,5]
[364745615,1749227448237,-651.17,0.00029834,5]
[364745616,1749227448248,-3716.38,0.00029834,5]
[364745617,1749227448257,-480.0,0.00029834,5]
[364745618,1749227448267,-2411.63,0.00029834,5]
[364745619,1749227448278,-498.68,0.00029834,5]
[364745620,1749227448287,-1000.0,0.00029834,2]
[364745621,1749227448297,-480.0,0.00029834,5]
[364745622,1749227448307,-480.0,0.00029834,5]
[364745623,1749227448317,-1391.28,0.00029834,5]
[364745624,1749227448327,-4869.05,0.00029834,5]
[364745625,1749227448338,-1028.21,0.00029834,5]
[364745626,1749227448348,-1940.38,0.00029834,5]
[364745627,1749227448358,-151.0,0.00029834,7]
[364745628,1749227448368,-480.0,0.00029834,5]
[364745629,1749227448378,-151.0,0.00029834,7]
[364745630,1749227448389,-3304.43,0.00029834,5]
[364745631,1749227448399,-1323.14,0.00029834,5]
[364745632,1749227448409,-1107.08,0.00029834,5]
[364745633,1749227448419,-404.98680034,0.00029834,5]
[364745634,1749227448429,-493.82174448,0.00029834,5]
[364745635,1749227448439,-1563.7,0.00029834,5]
[364745636,1749227448449,-1807.27,0.00029834,5]
[364745637,1749227448459,-480.0,0.00029834,5]
[364745638,1749227448469,-5020.42,0.00029834,5]
[364745639,1749227448479,-192.56007,0.00029834,7]
[364745640,1749227448488,-1209.36,0.00029834,5]
[364745641,1749227448498,-3471.8,0.00029834,5]
[364745642,1749227448507,-480.0,0.00029834,5]
[364745643,1749227448517,-480.0,0.00029834,5]
[364745644,1749227448527,-151.0,0.00029834,7]
[364745645,1749227448537,-192.56007,0.00029834,7]
[364745646,1749227448547,-150.47777,0.00029834,5]
[364745647,1749227448557,-1414.46,0.00029834,5]
[364745648,1749227448567,-2190.57,0.00029834,5]
[364745649,1749227448578,-800.74,0.00029834,5]
[364745650,1749227448588,-480.0,0.00029834,5]
[364745651,1749227448598,-926.05,0.00029834,5]
[364745652,1749227448608,-420.82368815,0.00029834,2]
[364745653,1749227448618,-585.0452618,0.00029834,5]
[364745654,1749227448628,-1064.41,0.00029834,5]
[364745655,1749227448638,-480.0,0.00029834,5]
[364745656,1749227448647,-3312.09,0.00029834,5]
[364745657,1749227448657,-1585.13,0.00029834,5]
[364745658,1749227448667,-480.0,0.00029834,5]
[364745659,1749227448676,-299.15881782,0.00029834,5]
[364745660,1749227448686,-480.0,0.00029834,5]
[364745661,1749227448695,-1027.06,0.00029834,5]
[364745662,1749227448705,-480.0,0.00029834,5]
[364745663,1749227448715,-480.0,0.00029834,5]
[364745664,1749227448726,-480.0,0.00029834,5]
[364745665,1749227448735,-10318.0,0.00029834,5]
[364745666,1749227448746,-2193.8,0.00029834,5]
[364745667,1749227448756,-511.37912,0.00029834,7]
[364745668,1749227448766,-480.0,0.00029834,5]
[364745669,1749227448776,-480.0,0.00029834,5]
[364745670,1749227448786,-748.18,0.00029834,5]
[364745671,1749227448796,-437.289691,0.00029834,2]
[364745672,1749227448808,-185.23991,0.00029834,5]
[364745673,1749227448818,-511.37912,0.00029834,7]
[364745674,1749227448828,-499.32,0.00029834,5]
[364745675,1749227448838,-626.17,0.00029834,5]
[364745676,1749227448848,-484.78,0.00029834,5]
[364745677,1749227448858,-480.0,0.00029834,5]
[364745678,1749227448868,-424.42628348,0.00029834,5]
[364745679,1749227448877,-480.0,0.00029834,5]
[364745680,1749227448888,-480.0,0.00029834,5]
[364745681,1749227448898,-2333.39,0.00029834,5]
[364745682,1749227448908,-480.0,0.00029834,5]
[364745683,1749227448918,-420.0,0.00029834,5]
[364745684,1749227448927,-2793.02,0.00029834,5]
[364745685,1749227448937,-480.0,0.00029834,5]
[364745686,1749227448947,-480.0,0.00029834,5]
[364745687,1749227448957,-480.0,0.00029834,5]
[364745688,1749227448967,-159.15918,0.00029834,5]
[364745689,1749227448977,-4622.42,0.00029834,5]
[364745690,1749227448987,-2090.29,0.00029834,5]
[364745691,1749227448997,-781.66,0.00029834,5]
[364745692,1749227449007,-480.0,0.00029834,5]
[364745693,1749227449017,-244.578444,0.00029834,7]
[364745694,1749227449027,-151.0,0.00029834,7]
[364745695,1749227449037,-1489.661916,0.00029834,7]
[364745696,1749227449047,-480.0,0.00029834,5]
[364745697,1749227449057,-151.0,0.00029834,7]
[364745698,1749227449066,-480.0,0.00029834,5]
[364745699,1749227449076,-244.578444,0.00029834,7]
[364745700,1749227449086,-480.0,0.00029834,5]
[364745701,1749227449095,-1489.661916,0.00029834,7]
[364745702,1749227449106,-1608.78,0.00029834,5]
[364745703,1749227449116,-151.0,0.00029834,7]
[364745704,1749227449126,-484.06,0.00029834,5]
[364745705,1749227449135,-151.0,0.00029834,7]
[364745706,1749227449145,-162.836284,0.00029834,5]
[364745707,1749227449154,-942.06,0.00029834,5]
[364745708,1749227449164,-942.06,0.00029834,5]
[364745709,1749227449174,-942.06,0.00029834,5]
[364745710,1749227449183,-942.06,0.00029834,5]
[364745711,1749227449193,-942.06,0.00029834,5]
[364745712,1749227449202,-942.06,0.00029834,5]
[364745713,1749227449212,-942.06,0.00029834,5]
[364745714,1749227449222,-151.0,0.00029834,7]
[364745715,1749227449232,-942.06,0.00029834,5]
[364745716,1749227449242,-942.06,0.00029834,5]
[364745717,1749227449252,-942.06,0.00029834,5]
[364745718,1749227449262,-942.06,0.00029834,5]
[364745719,1749227449272,-942.06,0.00029834,5]
[364745720,1749227449281,-942.06,0.00029834,5]
[364745721,1749227449292,-942.06,0.00029834,5]
[364745722,1749227449303,-942.06,0.00029834,5]
[364745723,1749227449313,-942.06,0.00029834,5]
[364745724,1749227449323,-942.06,0.00029834,5]
[364745725,1749227449333,-942.06,0.00029834,5]
[364745726,1749227449343,-480.0,0.00029834,5]
[364745727,1749227449354,-480.0,0.00029834,5]
[364745728,1749227449364,-1340.78,0.00029834,5]
[364745729,1749227449374,-731.94,0.00029834,5]
[364745730,1749227449384,-480.0,0.00029834,5]
[364745731,1749227449394,-2052.89,0.00029834,5]
[364745732,1749227449404,-480.0,0.00029834,5]
[364745733,1749227449414,-934.73,0.00029834,5]
[364745734,1749227449423,-950.85,0.00029834,5]
[364745735,1749227449433,-480.0,0.00029834,5]
[364745736,1749227449443,-1137.5,0.00029834,5]
[364745737,1749227449453,-151.0,0.00029834,7]
[364745738,1749227449464,-1902.15,0.00029834,5]
[364745739,1749227449473,-629.67,0.00029834,5]
[364745740,1749227449483,-432.69760027,0.00029834,5]
[364745741,1749227449493,-158.777066,0.00029834,5]
[364745742,1749227449503,-480.0,0.00029834,5]
[364745743,1749227449514,-480.0,0.00029834,5]
[364745744,1749227449523,-480.0,0.00029834,5]
[364745745,1749227449783,-480.0,0.00029834,5]
[364745746,1749227449793,-607.58,0.00029834,5]
[364745747,1749227449803,-4122.08,0.00029834,5]
[364745748,1749227449817,-494.53481212,0.00029834,5]
[364745749,1749227449826,-480.0,0.00029834,5]
[364745750,1749227449836,-2934.61,0.00029834,5]
[364745751,1749227449847,-480.0,0.00029834,5]
[364745752,1749227449859,-5801.37,0.00029834,5]
[364745753,1749227449868,-663.99,0.00029834,5]
[364745754,1749227449878,-480.0,0.00029834,5]
[364745755,1749227449888,-20866.89,0.00029834,5]
[364745756,1749227449899,-1043.81,0.00029834,5]
[364745757,1749227449908,-159.15918,0.00029834,5]
[364745758,1749227449917,-480.0,0.00029834,5]